Cogmind - Beta 16 @@@ ROGUE MODE // 2025.12.19 @ 19:21:26 Player: Compilatron Result: Self-destructed Performance ------------- Evolutions (1) 500 Regions Visited (2) 400 Robots Destroyed (3) 15 Value Destroyed (82) 82 Prototype IDs (1) 20 Alien Tech Used (0) 0 Bonus (200) 200 TOTAL SCORE: 1217 Bonus ------- Pacifist 200 Cogmind --------- Core Integrity 384/400 Matter 282/300 Energy 280/280 System Corruption 0% Temperature Cool (0) Movement Walking (120) Location -9/Materials Parts ------- > --- POWER (1) -------- Heavy Ion Engine > --- PROPULSION (4) --- Light Treads Light Treads Aluminum Leg Aluminum Leg > --- UTILITY (2) ------ Small Storage Unit > --- WEAPON (2) ------- EM Pulse Gun Particle Gun > --- INVENTORY (8) ---- Light Ion Engine Heavy Ion Engine Heavy Ion Engine Compact Wheel Compact Wheel Light Armor Plating Particle Gun Peak State ------------ > --- POWER ------------ Heavy Ion Engine > --- PROPULSION ------- Light Treads Light Treads Aluminum Leg Aluminum Leg > --- UTILITY ---------- Small Storage Unit Light Armor Plating > --- WEAPON ----------- EM Pulse Gun Particle Gun > --- INVENTORY -------- Light Ion Engine Heavy Ion Engine Heavy Ion Engine Compact Wheel Compact Wheel Particle Gun [Rating: 13] Favorites ----------- Power Heavy Ion Engine Engine Heavy Ion Engine Propulsion Aluminum Leg Treads Light Treads Leg Aluminum Leg Utility Small Storage Unit Storage Small Storage Unit Protection Light Armor Plating Weapon EM Pulse Gun Energy Gun EM Pulse Gun Build | -11 -10 -9 ------- Run | Yrd Mat Mat Slots Evolved 2 | . . 2 Power . | . . . Propulsion 2 | . . 2 Utility . | . . . Weapon . | . . . Parts Attached 5 | . 2 3 Power 1 | . 1 . Engine 1 | . 1 . Core . | . . . Reactor . | . . . Propulsion 2 | . . 2 Treads 2 | . . 2 Leg . | . . . Wheel . | . . . Hover . | . . . Flight . | . . . Utility 1 | . . 1 Device . | . . . Storage . | . . . Processor . | . . . Hackware . | . . . Protection 1 | . . 1 Artifact . | . . . Weapon 1 | . 1 . Energy Gun 1 | . 1 . Energy Cannon . | . . . Ballistic Gun . | . . . Ballistic Cannon . | . . . Launcher . | . . . Special Weapon . | . . . Impact Weapon . | . . . Slashing Weapon . | . . . Piercing Weapon . | . . . Special Melee Weapon . | . . . Unidentified Prototypes 1 | . 1 . Parts Lost . | . . . Power . | . . . Propulsion . | . . . Utility . | . . . Weapon . | . . . Highest Loss Streak . | . . . To Critical Strikes . | . . . Average Backups 6 | . 6 7 Power 2 | . 1 3 Propulsion 3 | . 4 2 Utility . | . . . Weapon 1 | . 1 1 Tool/Special . | . . . Unused Backups 10 | . 7 3 Power 2 | . 1 1 Propulsion 4 | . 2 2 Utility 1 | . 1 . Weapon 3 | . 3 . Tool/Special . | . . . Average Slot Usage (%) 83 | . 85 81 Engine 12 | . 14 11 Treads 7 | . . 15 Leg 24 | . 28 22 Storage 12 | . 14 11 Energy Gun 24 | . 28 22 Peak Build Rating 13 | . 10 13 Average Rating 9 | . 6 11 On Entrance 7 | 6 6 10 Avg Prop Armor Cover (%) 16 | . . 16 Naked Turns . | . . . Heaviest Build 21 | 14 18 21 Greatest Support 20 | 20 20 20 Greatest Overweight (x) 1 | . . 1 Average Overweight (x) . | . . . Largest Inventory Capacity 8 | . 8 8 Average Capacity 8 | . 8 8 Most Carried 8 | . 8 8 Average Carried 6 | . 6 7 Final Capacity 8 | 8 8 8 Final Carried 8 | 6 8 7 Class Distribution -------------------- 100% | Mutant Dominant Class ---------------- Mutant | -10/Materials Mutant | -9/Materials Resources | -11 -10 -9 ----------- Run | Yrd Mat Mat Matter Collected 232 | 200 . 32 Remotely . | . . . Salvage Created 108 | . . 108 Parts 7 | . . 7 Haulers Intercepted . | . . . Recyclers Shooed . | . . . Parts Field Recycled . | . . . Retrieved Matter . | . . . Parts Self-Destructed . | . . . Prevented . | . . . Parts Restored . | . . . Kills | -11 -10 -9 ------- Run | Yrd Mat Mat Combat Hostiles Destroyed 2 | . . 2 Guns 2 | . . 2 Classes Destroyed 2 | . . 2 Worker 1 | . . 1 Grunt 2 | . . 2 Best Kill Streak 3 | . . 3 Combat Bots Only 2 | . . 2 Max Kills in Single Turn 1 | . . 1 Gunslinging . | . . . Exploded . | . . . Melee . | . . . Uniques/NPCs Destroyed . | . . . Combat | -11 -10 -9 -------- Run | Yrd Mat Mat Hostile Shots Fired 9 | . . 9 Missed 3 | . . 3 Hits 6 | . . 6 Projectile 6 | . . 6 Damage Taken 99 | . . 99 Core 16 | . . 16 Absorbed by Shields . | . . . Core Remaining (%) 100 | 100 100 . Volleys Fired 6 | . . 6 Largest 2 | . . 2 Hottest 105 | . . 105 Shots Fired 12 | . . 12 Gun 12 | . . 12 Cannon . | . . . Launcher . | . . . Special . | . . . Kinetic . | . . . Thermal 6 | . . 6 Explosive . | . . . Electromagnetic 6 | . . 6 Robot Hit Streak 4 | . . 4 Robot Miss Streak 3 | . . 3 Penetration Max . | . . . Secondary Targets . | . . . Shots Hit Robots 7 | . . 7 Core Hits 4 | . . 4 Critical Kills . | . . . Critical Parts Destroyed . | . . . Critical Strikes . | . . . Melee Attacks . | . . . Impact . | . . . Slashing . | . . . Piercing . | . . . Sneak Attacks . | . . . Combat Hostiles . | . . . Follow-up Attacks . | . . . Damage Inflicted 170 | . . 170 Guns 119 | . . 119 Cannons . | . . . Explosions 51 | . . 51 Melee . | . . . Ramming . | . . . Kinetic . | . . . Thermal 116 | . . 116 Explosive . | . . . Electromagnetic 54 | . . 54 Impact . | . . . Slashing . | . . . Piercing . | . . . Highest Corruption . | . . . Average Corruption . | . . . Corruption Purged . | . . . Corruption Blocked . | . . . Overload Shots . | . . . Overflow Damage . | . . . Projectiles . | . . . Explosions . | . . . Melee . | . . . Knockbacks . | . . . Impact . | . . . Kinetic . | . . . Secondary . | . . . Self-Inflicted Damage . | . . . Shots . | . . . Rammed . | . . . Targets Rammed . | . . . Kicked . | . . . Crushed . | . . . Highest Temperature 288 | . . 288 Average Temperature 148 | . . 148 Received Heat Transfer 54 | . . 54 Siege Activations . | . . . Martial Activations . | . . . Shielding Activations . | . . . Robots Disrupted . | . . . Combat Hostiles . | . . . Robots Corrupted . | . . . Combat Hostiles . | . . . Parts Fried . | . . . Impact Corruptions . | . . . Robots Melted . | . . . Combat Hostiles . | . . . Parts Melted . | . . . Heat Transferred 198 | . . 198 Parts Sabotaged . | . . . Parts Stolen . | . . . Parts Stripped . | . . . Power Chain Reactions 1 | . . 1 Alert | -11 -10 -9 ------- Run | Yrd Mat Mat Maximum Alert Level . | . . . Low Security (%) 100 | . 100 100 Level 1 . | . . . Level 2 . | . . . Level 3 . | . . . Level 4 . | . . . Level 5 . | . . . High Security . | . . . Max Security . | . . . Peak Influence 48 | . . 48 Initial . | . . . Average 6 | . . 12 Influence Increases 58 | . . 58 Destroy 0b10 Robot/C 40 | . . 40 Destroy 0b10 Robot/NC 5 | . . 5 Destroy Leader 10 | . . 10 Destroy Structure 3 | . . 3 Influence Decreases 30 | . . 30 Time Decay 30 | . . 30 Squads Dispatched 3 | . 1 2 Investigation . | . . . Extermination . | . . . Reinforcement 3 | . 1 2 Assault . | . . . Garrison . | . . . Intercept . | . . . Searches Triggered . | . . . Construction Impeded . | . . . Haulers Reinforced . | . . . Active Scanning Responses . | . . . Cargo Convoy Interrupts . | . . . Stealth | -11 -10 -9 --------- Run | Yrd Mat Mat Distress Signals . | . . . Communications Jammed . | . . . Distress Signals . | . . . Times Spotted 8 | . 3 5 Peak Tracking Total 5 | . 1 5 Tactical Retreats . | . . . Traps | -11 -10 -9 ------- Run | Yrd Mat Mat Traps Triggered . | . . . Indirectly . | . . . Trap Hack Attempts . | . . . Triggered . | . . . Disarmed . | . . . Reprogrammed . | . . . Reused . | . . . Traps Extracted . | . . . Installed . | . . . Triggered . | . . . Machines | -11 -10 -9 ---------- Run | Yrd Mat Mat Machines Disabled . | . . . Max in Single Turn . | . . . Machines Repaired . | . . . Machines Dismantled . | . . . Machines Sabotaged . | . . . Overloaded Fab Kills . | . . . Hacking | -11 -10 -9 --------- Run | Yrd Mat Mat Machines Accessed 1 | . 1 . Terminals 1 | . 1 . Fabricators . | . . . Repair Stations . | . . . Recycling Units . | . . . Scanalyzers . | . . . Garrison Access . | . . . Total Hacks 4 | . 4 . Successful 2 | . 2 . Failed 2 | . 2 . Catastrophic . | . . . Database Lockouts . | . . . Manual 4 | . 4 . Terminals 4 | . 4 . Fabricators . | . . . Repair Stations . | . . . Recycling Units . | . . . Scanalyzers . | . . . Garrison Access . | . . . Terminal Hacks . | . . . Fabricator Hacks . | . . . Repair Station Hacks . | . . . Recycling Unit Hacks . | . . . Scanalyzer . | . . . Garrison Access Hacks . | . . . Unauthorized Hacks 2 | . 2 . Terminals 2 | . 2 . Assimilate 1 | . 1 . Botnet 1 | . 1 . Fabricators . | . . . Repair Stations . | . . . Recycling Units . | . . . Scanalyzers . | . . . Garrison Access . | . . . Data Cores Recovered . | . . . Used . | . . . Hacking Detections 1 | . 1 . Full Trace Events . | . . . Feedback Events . | . . . Feedback Blocked . | . . . Robot Schematics Acquired . | . . . Robots Built . | . . . Authchips . | . . . Time . | . . . Total Robot Build Rating . | . . . Part Schematics Acquired . | . . . Parts Built . | . . . Authchips . | . . . Time . | . . . Total Part Build Rating . | . . . Part Studies Acquired . | . . . Parts Repaired . | . . . Time . | . . . Parts Recycled . | . . . Recycled Matter . | . . . Retrieved Matter . | . . . Retrieved Components . | . . . Parts Scanalyzed . | . . . Part Schematics Acquired . | . . . Parts Damaged . | . . . Bothacking | -11 -10 -9 ------------ Run | Yrd Mat Mat Used RIF Installer . | . . . Robots Hacked . | . . . Non-combat . | . . . Combat . | . . . Robot Hacks Applied . | . . . Relay Couplers Released . | . . . Fabnet Peak Effective % . | . . . Robots Rewired . | . . . Allies Hacked . | . . . Hacks Repelled . | . . . Allies | -11 -10 -9 -------- Run | Yrd Mat Mat Total Allies 1 | . 1 . Largest Group 1 | . 1 1 Highest-Rated Group 10 | . 10 10 Highest-Rated Ally 10 | . 10 10 Total Orders . | . . . Ally Attacks . | . . . Total Damage . | . . . Kills . | . . . Allies Corrupted . | . . . Allies Melted . | . . . Intel | -11 -10 -9 ------- Run | Yrd Mat Mat Active Infowar (turns) . | . . . Robot Analysis Total . | . . . Derelict Logs Recovered . | . . . Drone Launches . | . . . Drone Recoveries . | . . . Exploration | -11 -10 -9 ------------- Run | Yrd Mat Mat Turns Passed 239 | . 118 121 Spaces Moved 173 | 1 91 81 Core . | . . . Treads . | . . . Legs 173 | 1 91 81 Wheels . | . . . Hover . | . . . Flight . | . . . Fastest Speed 120 | 120 120 120 Average Speed 120 | 120 120 120 Slowest Speed 190 | 120 120 190 Overloaded Moves . | . . . Propulsion Burnouts . | . . . Robots Hopped . | . . . Potential Cave-ins . | . . . Cave-ins Triggered . | . . . Exploration Rate (%) 9 | 2 20 7 Regions Visited 2 Branch Regions . Pre-discovered Areas . | . . . Known Exits Taken . | . . . Unknown Exits Taken 2 | 1 1 . Scrap Searched . | . . . Spaces Dug . | . . . Terrain Destroyed 2 | . . 2 Melee . | . . . Projectile . | . . . AOE 2 | . . 2 Terrain Rammed . | . . . Walls Destroyed . | . . . Machines Disabled . | . . . Actions | -11 -10 -9 --------- Run | Yrd Mat Mat Total 194 | . 102 92 Wait 3 | . 3 . Move 171 | . 90 81 Hop . | . . . Pick Up 5 | . 4 1 Fast Attach . | . . . Attach 3 | . . 3 Detach 1 | . . 1 Swap 2 | . 2 . Drop 3 | . 3 . Fire 6 | . . 6 Melee . | . . . Ram . | . . . Kick . | . . . Crush . | . . . Escape Stasis . | . . . Rewire . | . . . Trap . | . . . Miscellaneous . | . . . Route ------- -11/Scrapyard -10/Materials -9/Materials History --------- Turn | Location | Event 1 | -11/Scrapyard | Discovered new exit (range 0) 1 | -11/Scrapyard | Entered Materials 72 | -10/Materials | Discovered new exit (range 14) 119 | -10/Materials | Entered another Materials area 119 | -9/Materials | Accompanied by 1 ally 119 | -9/Materials | Evolved 2 slots: Propulsion x2 240 | -9/Materials | Self-destructed Last Messages --------------- 00195_ K-01 Serf collects debris. 00200_ G-47 Trooper misfires. 00200_ K-01 Serf destroyed. 00206_ Chain reaction triggered in Lgt. Nuclear Core. 00209_ G-47 Trooper destroyed. 00210_ U-05 Engineer lays Concrete. 00216_ K-01 Serf collects debris. 00216_ U-05 Engineer builds a Wall. 00217_ U-05 Engineer builds a Door. 00217_ U-05 Engineer lays Concrete. 00218_ Extracted 32 matter. 00218_ U-05 Engineer builds a Wall. 00219_ U-05 Engineer lays Concrete. 00222_ K-01 Serf collects debris. 00222_ U-05 Engineer lays Concrete. 00226_ K-01 Serf collects debris. 00227_ ALERT: Hostiles spotted, dispatching reinforcements to Terminal M004. 00229_ K-01 Serf collects debris. Map ----- +----------------------------------------------------+ | ??????????????????????????????????? | | ??????????????????????????????????? | | ??????????????????????????????????? | | ??????????????????????????????????? | | ??????????????????????????????????? | | ??????????????????????????????????? | | ??????????????????????????????????? | | ???????????????????????????#####??? | | ???????????????????????????# #??? | | ???????????????????????????# #??? | | ???????????????????????????# #??? | | ???????????????????????????# #??? | | ???????????????????????????# #??? | | ???????????????????????????# #??? | | ??????????????????????????## ##?? | | ??????????????????????????# #?? | | ??????????????????????????# T" #?? | | ??????????????????????????# " #?? | | ????????????????????####### #?? | | ????????????? #?? | | ????????????????????######## ##?? | | ???????????????????????????# #??? | | ???????????????????????????# #??? | | ???????##########??????????# #??? | | ???????# ############ #??? | | ???????# + o @ #??? | | ???????# * ############o #??? | | ???????# ! #?########## #??? | | # = #?# # #??? | | =/%= #?# """ # #??? | | #% #?# """ # #??? | | # #?# """ # #??? | | # #?# + #??? | | # ?##########?# """ # #??? | | ?# ?????????????# """ #####??? | | ??#??????????????# """ #??????? | | ??????????????????# #??????? | | ??????????????????##########??????? | | ??????????????????????????????????? | | ??????????????????????????????????? | | ??????????????????????????????????? | | ??????????????????????????????????? | | ??????????????????????????????????? | | ??????????????????????????????????? | | ??????????????????????????????????? | | ??????????????????????????????????? | | ??????????????????????????????????? | | ??????????????????????????????????? | | ??????????????????????????????????? | | ??????????????????????????????????? | +----------------------------------------------------+ Best States ------------- Heat Dissipation 28 Energy Generation 14 Energy Capacity 280 Matter Stores 300 Matter Capacity 300 Sight Range 16 Terrain Scan Density 10 Evasion (%) 55 Item Schematics ----------------- None Robot Schematics ------------------ None Fabricated ------------ Nothing Repaired ---------- Nothing Studied --------- None Alien Tech Used ----------------- None Achievements -------------- None Challenges ------------ None Game ------ Seed GunStorageRipteeth Manual? 0 Play Time 00:04:59 Cumulative 59.9 hours Start 2025.12.19 @ 19:15:30 End 2025.12.19 @ 19:21:26 Sessions 1 Manual Loads 0 Difficulty Rogue Special Mode None Game No. 89 Rogue 67 Adventurer 20 Explorer 2 Win Type - Total 0 Types 0/0/0/0/0/0/0/0/0/0 Lore% 42 Gallery% 36 Achievement% 24 Wizard Run 0 Options --------- Layout 1 ASCII 0 Keyboard 0 Movement Numpad Keybinds 0 Fullscreen 2 Font 24/Smallcaps Map View 50x35 Zoom Use 0% Tactical HUD 1 Map Filters NONE Filters NONE Steam 1 RUN: 50aa1075-0832-4420-baf1-d9d1a43ec862